[Event "NJSK 2021 Meisjes A&B"]
[Site "Almelo, Netherlands"]
[Date "2021.08.04"]
[Round "4.5"]
[White "Honkoop, Stella"]
[Black "Venema, Katja"]
[Result "1-0"]
[TimeControl "90min/40moves + 30sec/move"]
[WhiteElo "1573"]
[BlackElo "1356"]

1. d4 {[%clk 01:30:58]} {[%emt 00:00:02]} d5 {[%clk 01:30:53]} {[%emt
00:00:07]} 2. c4 {[%clk 01:31:07]} {[%emt 00:00:21]} c6 {[%clk 01:31:13]}
{[%emt 00:00:10]} 3. Nc3 {[%clk 01:31:22]} {[%emt 00:00:15]} Nf6 {[%clk
01:31:32]} {[%emt 00:00:11]} 4. Nf3 {[%clk 01:30:54]} {[%emt 00:00:58]} g6
{[%clk 01:31:26]} {[%emt 00:00:35]} 5. Bf4 {[%clk 01:30:31]} {[%emt 00:00:54]}
Bg7 {[%clk 01:31:15]} {[%emt 00:00:41]} 6. e3 {[%clk 01:25:46]} {[%emt
00:05:15]} Bf5 {[%clk 01:28:58]} {[%emt 00:02:46]} 7. Qb3 {[%clk 01:23:05]}
{[%emt 00:03:12]} Qb6 {[%clk 01:26:34]} {[%emt 00:02:55]} 8. cxd5 {[%clk
01:17:08]} {[%emt 00:06:27]} Nxd5 {[%clk 01:13:23]} {[%emt 00:13:41]} 9. Nxd5
{[%clk 01:16:44]} {[%emt 00:00:55]} cxd5 {[%clk 01:13:18]} {[%emt 00:00:34]} 10.
Bxb8 {[%clk 01:06:10]} {[%emt 00:11:04]} Qa5+ {[%clk 01:08:04]} {[%emt
00:05:44]} 11. Nd2 {[%clk 01:02:56]} {[%emt 00:03:43]} Rxb8 {[%clk 01:07:29]}
{[%emt 00:01:05]} 12. Bb5+ {[%clk 01:02:40]} {[%emt 00:00:47]} Bd7 {[%clk
01:05:46]} {[%emt 00:02:13]} 13. Bxd7+ {[%clk 01:01:33]} {[%emt 00:01:38]} Kxd7
{[%clk 01:06:04]} {[%emt 00:00:11]} 14. Rc1 {[%clk 01:01:34]} {[%emt 00:00:29]}
e6 {[%clk 01:00:31]} {[%emt 00:06:03]} 15. Rc5 {[%clk 00:59:30]} {[%emt
00:02:34]} Qa6 {[%clk 00:55:35]} {[%emt 00:05:26]} 16. Qc2 {[%clk 00:42:16]}
{[%emt 00:17:43]} Rhc8 {[%clk 00:52:05]} {[%emt 00:04:00]} 17. Nb3 {[%clk
00:40:51]} {[%emt 00:01:56]} Qxa2 {[%clk 00:39:51]} {[%emt 00:12:43]} 18. O-O
{[%clk 00:38:15]} {[%emt 00:03:07]} Rxc5 {[%clk 00:38:30]} {[%emt 00:01:51]} 19.
Nxc5+ {[%clk 00:37:57]} {[%emt 00:00:48]} Kd8 {[%clk 00:26:04]} {[%emt
00:12:56]} 20. Rc1 {[%clk 00:35:38]} {[%emt 00:02:49]} Qc4 {[%clk 00:24:06]}
{[%emt 00:02:26]} 21. Qd2 {[%clk 00:26:40]} {[%emt 00:09:30]} Qb5 {[%clk
00:20:35]} {[%emt 00:04:00]} 22. h3 {[%clk 00:23:46]} {[%emt 00:03:24]} Bf8
{[%clk 00:17:58]} {[%emt 00:03:06]} 23. Nd3 {[%clk 00:22:05]} {[%emt 00:02:12]}
Rc8 {[%clk 00:15:15]} {[%emt 00:03:13]} 24. Ra1 {[%clk 00:19:57]} {[%emt
00:02:38]} a6 {[%clk 00:13:57]} {[%emt 00:01:48]} 25. Ra5 {[%clk 00:19:22]}
{[%emt 00:01:06]} Qb3 {[%clk 00:13:26]} {[%emt 00:01:00]} 26. Ra1 {[%clk
00:16:51]} {[%emt 00:03:02]} Bd6 {[%clk 00:12:20]} {[%emt 00:01:36]} 27. g3
{[%clk 00:16:00]} {[%emt 00:01:22]} Ke7 {[%clk 00:11:24]} {[%emt 00:01:25]} 28.
Kg2 {[%clk 00:14:25]} {[%emt 00:02:05]} h5 {[%clk 00:11:06]} {[%emt 00:00:48]}
29. Kg1 {[%clk 00:13:48]} {[%emt 00:01:07]} Rc4 {[%clk 00:10:56]} {[%emt
00:00:39]} 30. Nc1 {[%clk 00:13:06]} {[%emt 00:01:12]} Qc2 {[%clk 00:09:48]}
{[%emt 00:01:37]} 31. Qxc2 {[%clk 00:10:28]} {[%emt 00:03:09]} Rxc2 {[%clk
00:10:15]} {[%emt 00:00:03]} 32. b3 {[%clk 00:10:23]} {[%emt 00:00:35]} Bb4
{[%clk 00:09:45]} {[%emt 00:01:00]} 33. Kf1 {[%clk 00:08:35]} {[%emt 00:02:18]}
a5 {[%clk 00:09:42]} {[%emt 00:00:33]} 34. Rb1 {[%clk 00:06:49]} {[%emt
00:02:16]} Kf6 {[%clk 00:09:16]} {[%emt 00:00:55]} 35. Nd3 {[%clk 00:05:36]}
{[%emt 00:01:44]} Bc3 {[%clk 00:09:08]} {[%emt 00:00:38]} 36. h4 {[%clk
00:04:14]} {[%emt 00:01:52]} Kf5 {[%clk 00:08:25]} {[%emt 00:01:12]} 37. f3
{[%clk 00:03:56]} {[%emt 00:00:49]} b6 {[%clk 00:08:23]} {[%emt 00:00:31]} 38.
Ne5 {[%clk 00:03:46]} {[%emt 00:00:40]} f6 {[%clk 00:08:34]} {[%emt 00:00:19]}
39. Nd3 {[%clk 00:03:02]} {[%emt 00:01:15]} Rh2 {[%clk 00:08:18]} {[%emt
00:00:45]} 40. Nf2 {[%clk 00:02:44]} {[%emt 00:00:48]} Bd2 {[%clk 00:08:03]}
{[%emt 00:00:44]} 41. g4+ {[%clk 00:02:37]} {[%emt 00:00:38]} hxg4 {[%clk
00:08:21]} {[%emt 00:00:12]} 42. fxg4# {[%clk 00:03:03]} {[%emt 00:00:04]} 1-0

[Event "NJSK 2021 Meisjes A&B"]
[Site "Almelo, Netherlands"]
[Date "2021.08.04"]
[Round "4.6"]
[White "Bertholee, Arjuna"]
[Black "Zubair, Javeria Komal"]
[Result "0-1"]
[TimeControl "90min/40moves + 30sec/move"]
[WhiteElo "1144"]
[BlackElo "1490"]

1. e4 {[%clk 01:30:58]} {[%emt 00:00:02]} c5 {[%clk 01:30:57]} {[%emt
00:00:03]} 2. Nc3 {[%clk 01:31:18]} {[%emt 00:00:10]} e6 {[%clk 01:31:16]}
{[%emt 00:00:11]} 3. Bc4 {[%clk 01:31:36]} {[%emt 00:00:12]} Nc6 {[%clk
01:31:25]} {[%emt 00:00:22]} 4. d3 {[%clk 01:31:48]} {[%emt 00:00:17]} Be7
{[%clk 01:31:24]} {[%emt 00:00:31]} 5. f4 {[%clk 01:28:01]} {[%emt 00:04:17]}
d6 {[%clk 01:21:57]} {[%emt 00:09:57]} 6. Nf3 {[%clk 01:24:05]} {[%emt
00:04:26]} Nf6 {[%clk 01:21:30]} {[%emt 00:00:57]} 7. O-O {[%clk 01:18:33]}
{[%emt 00:06:01]} O-O {[%clk 01:19:28]} {[%emt 00:02:33]} 8. Qe1 {[%clk
01:13:02]} {[%emt 00:06:02]} Nd4 {[%clk 01:16:04]} {[%emt 00:03:53]} 9. Qf2
{[%clk 01:04:42]} {[%emt 00:08:50]} d5 {[%clk 01:14:36]} {[%emt 00:01:58]} 10.
Bb3 {[%clk 01:01:33]} {[%emt 00:03:39]} dxe4 {[%clk 01:11:21]} {[%emt
00:03:46]} 11. dxe4 {[%clk 00:56:23]} {[%emt 00:05:40]} b5 {[%clk 01:08:35]}
{[%emt 00:03:16]} 12. Nxd4 {[%clk 00:49:57]} {[%emt 00:06:55]} cxd4 {[%clk
01:08:58]} {[%emt 00:00:09]} 13. Nxb5 {[%clk 00:45:33]} {[%emt 00:04:54]} Ba6
{[%clk 00:59:20]} {[%emt 00:10:07]} 14. a4 {[%clk 00:39:59]} {[%emt 00:06:04]}
Nxe4 {[%clk 00:55:57]} {[%emt 00:03:53]} 15. Qf3 {[%clk 00:37:31]} {[%emt
00:02:58]} Nc5 {[%clk 00:52:47]} {[%emt 00:03:40]} 16. Bc4 {[%clk 00:33:01]}
{[%emt 00:05:01]} Bb7 {[%clk 00:49:30]} {[%emt 00:03:47]} 17. Qd1 {[%clk
00:29:35]} {[%emt 00:03:56]} Bf6 {[%clk 00:47:15]} {[%emt 00:02:45]} 18. Ra3
{[%clk 00:24:32]} {[%emt 00:05:33]} a6 {[%clk 00:47:14]} {[%emt 00:00:32]} 19.
Nxd4 {[%clk 00:18:40]} {[%emt 00:06:21]} Qxd4+ {[%clk 00:46:35]} {[%emt
00:01:09]} 20. Qxd4 {[%clk 00:19:03]} {[%emt 00:00:08]} Bxd4+ {[%clk 00:46:59]}
{[%emt 00:00:06]} 21. Kh1 {[%clk 00:19:21]} {[%emt 00:00:12]} Ne4 {[%clk
00:44:21]} {[%emt 00:03:09]} 22. Raf3 {[%clk 00:18:09]} {[%emt 00:01:42]} Rad8
{[%clk 00:40:31]} {[%emt 00:04:19]} 23. Bd3 {[%clk 00:14:22]} {[%emt 00:04:18]}
Nc5 {[%clk 00:40:06]} {[%emt 00:00:56]} 24. Rh3 {[%clk 00:14:21]} {[%emt
00:00:30]} Nxd3 {[%clk 00:40:25]} {[%emt 00:00:11]} 25. Rxd3 {[%clk 00:14:28]}
{[%emt 00:00:23]} a5 {[%clk 00:39:05]} {[%emt 00:01:51]} 26. Rfd1 {[%clk
00:13:44]} {[%emt 00:01:14]} Bf6 {[%clk 00:39:18]} {[%emt 00:00:17]} 27. c3
{[%clk 00:11:55]} {[%emt 00:02:19]} Bc6 {[%clk 00:37:45]} {[%emt 00:02:02]} 28.
b3 {[%clk 00:11:50]} {[%emt 00:00:36]} Be4 {[%clk 00:36:01]} {[%emt 00:02:14]}
29. Rxd8 {[%clk 00:11:46]} {[%emt 00:00:33]} Rxd8 {[%clk 00:36:24]} {[%emt
00:00:08]} 30. Rxd8+ {[%clk 00:11:19]} {[%emt 00:00:57]} Bxd8 {[%clk 00:36:50]}
{[%emt 00:00:05]} 31. b4 {[%clk 00:11:00]} {[%emt 00:00:48]} Bc2 {[%clk
00:36:02]} {[%emt 00:01:18]} 32. bxa5 {[%clk 00:11:09]} {[%emt 00:00:21]} Bxa5
{[%clk 00:36:22]} {[%emt 00:00:10]} 33. Bb2 {[%clk 00:11:09]} {[%emt 00:00:29]}
Bxa4 {[%clk 00:36:37]} {[%emt 00:00:16]} 34. h3 {[%clk 00:11:18]} {[%emt
00:00:21]} f6 {[%clk 00:35:51]} {[%emt 00:01:16]} 35. Kh2 {[%clk 00:10:21]}
{[%emt 00:01:26]} Kf7 {[%clk 00:36:11]} {[%emt 00:00:11]} 36. Kg3 {[%clk
00:10:27]} {[%emt 00:00:25]} Bc7 {[%clk 00:36:36]} {[%emt 00:00:06]} 37. Kg4
{[%clk 00:10:12]} {[%emt 00:00:45]} Kg6 {[%clk 00:36:24]} {[%emt 00:00:41]} 38.
Bc1 {[%clk 00:09:48]} {[%emt 00:00:53]} Bd1+ {[%clk 00:35:45]} {[%emt
00:01:09]} 39. Kg3 {[%clk 00:09:07]} {[%emt 00:01:10]} Kf5 {[%clk 00:36:09]}
{[%emt 00:00:06]} 40. h4 {[%clk 00:08:32]} {[%emt 00:01:05]} g5 {[%clk
00:35:59]} {[%emt 00:00:41]} 41. hxg5 {[%clk 00:08:36]} {[%emt 00:00:25]} fxg5
{[%clk 00:36:24]} {[%emt 00:00:05]} 42. Kf2 {[%clk 00:08:30]} {[%emt 00:00:36]}
gxf4 {[%clk 00:36:49]} {[%emt 00:00:05]} 43. c4 {[%clk 00:08:49]} {[%emt
00:00:11]} h5 {[%clk 00:37:04]} {[%emt 00:00:15]} 44. c5 {[%clk 00:09:06]}
{[%emt 00:00:14]} e5 {[%clk 00:37:19]} {[%emt 00:00:14]} 45. g3 {[%clk
00:09:20]} {[%emt 00:00:16]} f3 {[%clk 00:37:18]} {[%emt 00:00:32]} 46. Ke1
{[%clk 00:09:19]} {[%emt 00:00:30]} Be2 {[%clk 00:37:29]} {[%emt 00:00:19]} 47.
Kf2 {[%clk 00:09:41]} {[%emt 00:00:07]} e4 {[%clk 00:37:52]} {[%emt 00:00:08]}
48. Bf4 {[%clk 00:09:17]} {[%emt 00:00:55]} Bxf4 {[%clk 00:37:54]} {[%emt
00:00:28]} 49. gxf4 {[%clk 00:09:41]} {[%emt 00:00:05]} Kxf4 {[%clk 00:38:20]}
{[%emt 00:00:04]} 50. c6 {[%clk 00:10:08]} {[%emt 00:00:04]} e3+ {[%clk
00:38:36]} {[%emt 00:00:14]} 51. Ke1 {[%clk 00:10:30]} {[%emt 00:00:08]} Ba6
{[%clk 00:38:51]} {[%emt 00:00:15]} 52. c7 {[%clk 00:10:43]} {[%emt 00:00:17]}
f2+ {[%clk 00:39:14]} {[%emt 00:00:07]} 53. Kd1 {[%clk 00:11:07]} {[%emt
00:00:06]} f1=Q+ {[%clk 00:38:55]} {[%emt 00:00:47]} 54. Kc2 {[%clk 00:11:26]}
{[%emt 00:00:13]} Qd3+ {[%clk 00:38:53]} {[%emt 00:00:32]} 55. Kb2 {[%clk
00:11:42]} {[%emt 00:00:15]} Qc4 {[%clk 00:38:53]} {[%emt 00:00:30]} 56. c8=Q
{[%clk 00:11:59]} {[%emt 00:00:13]} Bxc8 {[%clk 00:39:11]} {[%emt 00:00:12]} 57.
Ka3 {[%clk 00:12:19]} {[%emt 00:00:10]} Qb5 {[%clk 00:38:45]} {[%emt 00:00:55]}
58. Ka2 {[%clk 00:12:41]} {[%emt 00:00:08]} Ke4 {[%clk 00:39:05]} {[%emt
00:00:10]} 59. Ka1 {[%clk 00:13:00]} {[%emt 00:00:11]} Kd3 {[%clk 00:39:25]}
{[%emt 00:00:10]} 60. Ka2 {[%clk 00:13:24]} {[%emt 00:00:07]} Kc2 {[%clk
00:39:27]} {[%emt 00:00:28]} 61. Ka3 {[%clk 00:13:47]} {[%emt 00:00:07]} Qb3#
{[%clk 00:39:52]} {[%emt 00:00:05]} 0-1

[Event "NJSK 2021 Meisjes A&B"]
[Site "Almelo, Netherlands"]
[Date "2021.08.04"]
[Round "4.7"]
[White "Martinez, Sara"]
[Black "Duson, Stella"]
[Result "1-0"]
[TimeControl "90min/40moves + 30sec/move"]
[WhiteElo "1528"]
[BlackElo "1259"]

1. e4 {[%clk 01:30:58]} {[%emt 00:00:01]} e5 {[%clk 01:30:53]} {[%emt
00:00:07]} 2. Nf3 {[%clk 01:31:24]} {[%emt 00:00:05]} Nc6 {[%clk 01:31:16]}
{[%emt 00:00:07]} 3. d4 {[%clk 01:31:48]} {[%emt 00:00:06]} exd4 {[%clk
01:31:36]} {[%emt 00:00:09]} 4. Nxd4 {[%clk 01:32:11]} {[%emt 00:00:06]} Nf6
{[%clk 01:31:47]} {[%emt 00:00:20]} 5. Nc3 {[%clk 01:32:33]} {[%emt 00:00:09]}
Bb4 {[%clk 01:31:51]} {[%emt 00:00:26]} 6. Nxc6 {[%clk 01:32:55]} {[%emt
00:00:08]} bxc6 {[%clk 01:32:10]} {[%emt 00:00:11]} 7. Bd3 {[%clk 01:33:14]}
{[%emt 00:00:11]} O-O {[%clk 01:31:53]} {[%emt 00:00:46]} 8. O-O {[%clk
01:33:31]} {[%emt 00:00:13]} Re8 {[%clk 01:31:44]} {[%emt 00:00:38]} 9. Qf3
{[%clk 01:29:41]} {[%emt 00:04:21]} d5 {[%clk 01:27:47]} {[%emt 00:04:27]} 10.
exd5 {[%clk 01:28:42]} {[%emt 00:01:30]} cxd5 {[%clk 01:27:50]} {[%emt
00:00:27]} 11. Bg5 {[%clk 01:26:47]} {[%emt 00:02:24]} Be7 {[%clk 01:20:29]}
{[%emt 00:07:51]} 12. h3 {[%clk 01:20:53]} {[%emt 00:06:24]} c6 {[%clk
01:17:30]} {[%emt 00:03:29]} 13. Rad1 {[%clk 01:14:48]} {[%emt 00:06:36]} h6
{[%clk 01:13:50]} {[%emt 00:04:10]} 14. Bh4 {[%clk 01:09:36]} {[%emt 00:05:42]}
Rb8 {[%clk 01:07:51]} {[%emt 00:06:29]} 15. b3 {[%clk 01:04:06]} {[%emt
00:06:01]} Ra8 {[%clk 00:54:02]} {[%emt 00:14:19]} 16. Ne2 {[%clk 00:58:33]}
{[%emt 00:06:03]} Ne4 {[%clk 00:47:09]} {[%emt 00:07:23]} 17. Bxe7 {[%clk
00:57:08]} {[%emt 00:01:54]} Qxe7 {[%clk 00:44:42]} {[%emt 00:02:57]} 18. Nd4
{[%clk 00:51:28]} {[%emt 00:06:11]} Bd7 {[%clk 00:41:16]} {[%emt 00:03:56]} 19.
c4 {[%clk 00:39:02]} {[%emt 00:12:57]} Nc3 {[%clk 00:35:50]} {[%emt 00:05:55]}
20. Rd2 {[%clk 00:35:37]} {[%emt 00:03:54]} Be6 {[%clk 00:30:27]} {[%emt
00:05:54]} 21. Nxc6 {[%clk 00:31:01]} {[%emt 00:05:07]} Qc5 {[%clk 00:27:22]}
{[%emt 00:03:30]} 22. Ne5 {[%clk 00:28:39]} {[%emt 00:02:57]} Rad8 {[%clk
00:20:35]} {[%emt 00:07:16]} 23. Bf5 {[%clk 00:22:00]} {[%emt 00:07:09]} Bxf5
{[%clk 00:17:24]} {[%emt 00:03:41]} 24. Qxf5 {[%clk 00:22:11]} {[%emt
00:00:19]} Qc7 {[%clk 00:15:21]} {[%emt 00:02:33]} 25. Nf3 {[%clk 00:18:42]}
{[%emt 00:04:00]} dxc4 {[%clk 00:14:55]} {[%emt 00:00:56]} 26. bxc4 {[%clk
00:17:16]} {[%emt 00:01:56]} Qxc4 {[%clk 00:14:36]} {[%emt 00:00:49]} 27. Rc2
{[%clk 00:15:02]} {[%emt 00:02:45]} Re2 {[%clk 00:12:07]} {[%emt 00:02:58]} 28.
Rfc1 {[%clk 00:10:54]} {[%emt 00:04:38]} g6 {[%clk 00:08:07]} {[%emt 00:04:30]}
29. Qa5 {[%clk 00:08:13]} {[%emt 00:03:11]} Rxc2 {[%clk 00:05:48]} {[%emt
00:02:49]} 30. Qxd8+ {[%clk 00:08:32]} {[%emt 00:00:11]} Kg7 {[%clk 00:05:40]}
{[%emt 00:00:38]} 31. Rxc2 {[%clk 00:08:49]} {[%emt 00:00:12]} Ne2+ {[%clk
00:05:52]} {[%emt 00:00:18]} 32. Rxe2 {[%clk 00:09:14]} {[%emt 00:00:06]} Qxe2
{[%clk 00:06:19]} {[%emt 00:00:03]} 33. Qd4+ {[%clk 00:09:01]} {[%emt
00:00:43]} Kh7 {[%clk 00:06:17]} {[%emt 00:00:31]} 34. Qxa7 {[%clk 00:08:55]}
{[%emt 00:00:37]} h5 {[%clk 00:06:21]} {[%emt 00:00:26]} 35. Qxf7+ {[%clk
00:09:19]} {[%emt 00:00:06]} Kh6 {[%clk 00:06:43]} {[%emt 00:00:08]} 36. Qf8+
{[%clk 00:09:18]} {[%emt 00:00:31]} Kh7 {[%clk 00:06:59]} {[%emt 00:00:14]} 37.
Ng5# {[%clk 00:09:44]} {[%emt 00:00:04]} 1-0

[Event "NJSK 2021 Meisjes A&B"]
[Site "Almelo, Netherlands"]
[Date "2021.08.05"]
[Round "5.1"]
[White "Ricken, Katharina"]
[Black "De Zoeten, Cato"]
[Result "0-1"]
[TimeControl "90min/40moves + 30sec/move"]
[WhiteElo "2030"]
[BlackElo "1881"]

1. Nf3 {[%clk 01:30:59]} {[%emt 00:00:01]} Nf6 {[%clk 01:30:52]} {[%emt
00:00:08]} 2. g3 {[%clk 01:31:25]} {[%emt 00:00:03]} g6 {[%clk 01:31:18]}
{[%emt 00:00:04]} 3. b3 {[%clk 01:31:53]} {[%emt 00:00:03]} d5 {[%clk
01:31:39]} {[%emt 00:00:09]} 4. Bb2 {[%clk 01:32:19]} {[%emt 00:00:05]} c5
{[%clk 01:32:04]} {[%emt 00:00:04]} 5. c4 {[%clk 01:32:43]} {[%emt 00:00:06]}
d4 {[%clk 01:32:28]} {[%emt 00:00:06]} 6. b4 {[%clk 01:33:07]} {[%emt
00:00:06]} Nc6 {[%clk 01:19:45]} {[%emt 00:13:13]} 7. bxc5 {[%clk 01:33:22]}
{[%emt 00:00:14]} e5 {[%clk 01:19:53]} {[%emt 00:00:22]} 8. d3 {[%clk
01:33:46]} {[%emt 00:00:06]} Bg7 {[%clk 01:17:00]} {[%emt 00:03:24]} 9. Nbd2
{[%clk 01:33:37]} {[%emt 00:00:39]} Bf5 {[%clk 01:14:34]} {[%emt 00:02:55]} 10.
Bg2 {[%clk 01:33:01]} {[%emt 00:01:07]} O-O {[%clk 01:14:22]} {[%emt 00:00:42]}
11. O-O {[%clk 01:32:18]} {[%emt 00:01:13]} Re8 {[%clk 01:10:22]} {[%emt
00:04:30]} 12. Ng5 {[%clk 01:28:26]} {[%emt 00:04:22]} Qd7 {[%clk 01:05:13]}
{[%emt 00:05:39]} 13. Rb1 {[%clk 01:26:26]} {[%emt 00:02:30]} h6 {[%clk
00:55:37]} {[%emt 00:10:06]} 14. Nge4 {[%clk 01:26:18]} {[%emt 00:00:38]} Nxe4
{[%clk 00:54:07]} {[%emt 00:02:00]} 15. Nxe4 {[%clk 01:26:13]} {[%emt
00:00:35]} Bh3 {[%clk 00:54:22]} {[%emt 00:00:15]} 16. Ba3 {[%clk 01:16:15]}
{[%emt 00:10:28]} Bxg2 {[%clk 00:51:48]} {[%emt 00:03:03]} 17. Kxg2 {[%clk
01:16:28]} {[%emt 00:00:18]} f5 {[%clk 00:40:28]} {[%emt 00:11:50]} 18. Nd6
{[%clk 01:15:53]} {[%emt 00:01:05]} Reb8 {[%clk 00:40:45]} {[%emt 00:00:12]} 19.
Qa4 {[%clk 01:01:00]} {[%emt 00:15:23]} Bf8 {[%clk 00:38:30]} {[%emt 00:02:45]}
20. Qb5 {[%clk 00:47:25]} {[%emt 00:14:06]} a6 {[%clk 00:29:35]} {[%emt
00:09:24]} 21. Qb6 {[%clk 00:41:30]} {[%emt 00:06:25]} Be7 {[%clk 00:26:45]}
{[%emt 00:03:20]} 22. Rb2 {[%clk 00:26:28]} {[%emt 00:15:33]} Bd8 {[%clk
00:25:48]} {[%emt 00:01:26]} 23. Qb3 {[%clk 00:26:53]} {[%emt 00:00:05]} Bc7
{[%clk 00:22:31]} {[%emt 00:03:48]} 24. Rfb1 {[%clk 00:25:04]} {[%emt
00:02:19]} b6 {[%clk 00:17:54]} {[%emt 00:05:07]} 25. Qa4 {[%clk 00:22:35]}
{[%emt 00:02:59]} b5 {[%clk 00:12:28]} {[%emt 00:05:57]} 26. Qc2 {[%clk
00:19:25]} {[%emt 00:03:40]} b4 {[%clk 00:12:00]} {[%emt 00:00:58]} 27. Bxb4
{[%clk 00:19:47]} {[%emt 00:00:07]} Rxb4 {[%clk 00:11:31]} {[%emt 00:00:59]} 28.
Rxb4 {[%clk 00:19:53]} {[%emt 00:00:25]} Nxb4 {[%clk 00:11:58]} {[%emt
00:00:02]} 29. Rxb4 {[%clk 00:19:17]} {[%emt 00:01:06]} Qc6+ {[%clk 00:12:21]}
{[%emt 00:00:06]} 30. f3 {[%clk 00:11:37]} {[%emt 00:08:11]} Qxc5 {[%clk
00:12:45]} {[%emt 00:00:06]} 31. Nb5 {[%clk 00:09:48]} {[%emt 00:02:18]} axb5
{[%clk 00:09:46]} {[%emt 00:03:29]} 32. Rxb5 {[%clk 00:10:15]} {[%emt
00:00:04]} Qa3 {[%clk 00:08:51]} {[%emt 00:01:24]} 33. Rb7 {[%clk 00:09:14]}
{[%emt 00:01:31]} Ra7 {[%clk 00:07:52]} {[%emt 00:01:30]} 34. Rxa7 {[%clk
00:07:56]} {[%emt 00:01:48]} Qxa7 {[%clk 00:07:59]} {[%emt 00:00:24]} 35. Qb3
{[%clk 00:07:39]} {[%emt 00:00:46]} Kg7 {[%clk 00:06:29]} {[%emt 00:01:59]} 36.
Qb5 {[%clk 00:07:40]} {[%emt 00:00:29]} Qb6 {[%clk 00:04:13]} {[%emt 00:02:46]}
37. Qxb6 {[%clk 00:01:55]} {[%emt 00:06:15]} Bxb6 {[%clk 00:04:38]} {[%emt
00:00:06]} 38. Kf2 {[%clk 00:02:04]} {[%emt 00:00:21]} Kf6 {[%clk 00:03:16]}
{[%emt 00:01:51]} 39. Ke1 {[%clk 00:02:13]} {[%emt 00:00:21]} Ke6 {[%clk
00:03:32]} {[%emt 00:00:14]} 40. Kd2 {[%clk 00:02:31]} {[%emt 00:00:12]} Kd6
{[%clk 00:03:55]} {[%emt 00:00:07]} 41. Kc2 {[%clk 00:02:21]} {[%emt 00:00:41]}
Kc5 {[%clk 00:03:38]} {[%emt 00:00:47]} 42. Kb3 {[%clk 00:01:55]} {[%emt
00:00:56]} h5 {[%clk 00:00:58]} {[%emt 00:03:09]} 43. h3 {[%clk 00:24:07]}
{[%emt 00:08:19]} Bc7 {[%clk 00:28:34]} {[%emt 00:02:53]} 44. g4 {[%clk
00:21:15]} {[%emt 00:03:23]} fxg4 {[%clk 00:26:19]} {[%emt 00:02:45]} 45. fxg4
{[%clk 00:21:37]} {[%emt 00:00:08]} hxg4 {[%clk 00:26:31]} {[%emt 00:00:18]} 46.
hxg4 {[%clk 00:22:06]} {[%emt 00:00:01]} Bd6 {[%clk 00:26:15]} {[%emt
00:00:46]} 47. Ka4 {[%clk 00:21:25]} {[%emt 00:01:11]} Kb6 {[%clk 00:26:39]}
{[%emt 00:00:05]} 48. Kb3 {[%clk 00:20:15]} {[%emt 00:01:40]} Be7 {[%clk
00:25:34]} {[%emt 00:01:36]} 49. Ka4 {[%clk 00:20:06]} {[%emt 00:00:39]} Bc5
{[%clk 00:25:40]} {[%emt 00:00:23]} 50. Kb3 {[%clk 00:20:16]} {[%emt 00:00:20]}
Ka5 {[%clk 00:25:55]} {[%emt 00:00:15]} 51. Kc2 {[%clk 00:19:50]} {[%emt
00:00:55]} Ka4 {[%clk 00:25:34]} {[%emt 00:00:52]} 52. Kb2 {[%clk 00:19:52]}
{[%emt 00:00:29]} Ba3+ {[%clk 00:25:43]} {[%emt 00:00:19]} 53. Kb1 {[%clk
00:19:06]} {[%emt 00:01:17]} Ka5 {[%clk 00:25:59]} {[%emt 00:00:14]} 54. Kc2
{[%clk 00:18:17]} {[%emt 00:01:20]} Kb4 {[%clk 00:26:24]} {[%emt 00:00:05]} 55.
Kd2 {[%clk 00:17:39]} {[%emt 00:01:08]} Bb2 {[%clk 00:24:26]} {[%emt 00:02:28]}
56. Kc2 {[%clk 00:17:24]} {[%emt 00:00:45]} Bc3 {[%clk 00:24:40]} {[%emt
00:00:16]} 57. Kc1 {[%clk 00:16:45]} {[%emt 00:01:08]} Ka3 {[%clk 00:23:19]}
{[%emt 00:01:51]} 58. Kb1 {[%clk 00:16:56]} {[%emt 00:00:19]} g5 {[%clk
00:22:58]} {[%emt 00:00:51]} 59. c5 {[%clk 00:16:34]} {[%emt 00:00:52]} Bb4
{[%clk 00:22:50]} {[%emt 00:00:37]} 60. c6 {[%clk 00:16:58]} {[%emt 00:00:07]}
Bd6 {[%clk 00:23:01]} {[%emt 00:00:19]} 61. Kc2 {[%clk 00:16:21]} {[%emt
00:01:07]} Kxa2 {[%clk 00:22:42]} {[%emt 00:00:50]} 62. Kd2 {[%clk 00:16:36]}
{[%emt 00:00:15]} Kb3 {[%clk 00:23:00]} {[%emt 00:00:11]} 63. e3 {[%clk
00:16:55]} {[%emt 00:00:11]} Kb4 {[%clk 00:22:47]} {[%emt 00:00:44]} 64. Ke2
{[%clk 00:16:46]} {[%emt 00:00:39]} Kc5 {[%clk 00:22:49]} {[%emt 00:00:28]} 65.
Kf3 {[%clk 00:16:56]} {[%emt 00:00:20]} Kxc6 {[%clk 00:22:51]} {[%emt
00:00:28]} 66. exd4 {[%clk 00:17:15]} {[%emt 00:00:11]} exd4 {[%clk 00:23:14]}
{[%emt 00:00:07]} 67. Ke4 {[%clk 00:17:42]} {[%emt 00:00:03]} Kc5 {[%clk
00:23:31]} {[%emt 00:00:13]} 68. Kf5 {[%clk 00:17:58]} {[%emt 00:00:13]} Bf4
{[%clk 00:23:59]} {[%emt 00:00:02]} 69. Ke4 {[%clk 00:18:21]} {[%emt 00:00:07]}
Be3 {[%clk 00:24:23]} {[%emt 00:00:05]} 70. Kf5 {[%clk 00:18:47]} {[%emt
00:00:05]} Kb4 {[%clk 00:24:48]} {[%emt 00:00:04]} 0-1